Cogmind - Beta 12 @@@ ROGUE MODE // 2023.03.06 @ 18:58:26 Player: Inkie Result: Self-destructed Performance ------------- Evolutions (2) 1000 Regions Visited (6) 1200 Robots Destroyed (36) 180 Value Destroyed (1169) 1169 Prototype IDs (26) 520 Alien Tech Used (0) 0 Bonus (502) 502 TOTAL SCORE: 4571 Bonus ------- High Alert Combat Kills 2 Entered Garrisons 200 Aligned with FarCom 300 Cogmind --------- Core Integrity 451/550 Matter 201/300 Energy 280/280 System Corruption 0% Temperature Cool (9) Movement Treading (320) Ox2 Location -8/Garrison Parts ------- > --- POWER (1) -------- Cooled Ion Engine > --- PROPULSION (4) --- Improved Treads > --- UTILITY (4) ------ High-capacity Storage Unit Advanced Targeting Computer Utility Shielding System Shield > --- WEAPON (2) ------- Heavy EM Shotgun Precision Beam Rifle > --- INVENTORY (20) --- Cooled Ion Engine Heat Sink Improved Heat Sink Lightpack 2.0 High-capacity Battery (250) Authchip [Processor] Long-range Tractor Beam Beam Rifle Heavy Assault Rifle Mini Grenade Launcher Peak State ------------ > --- POWER ------------ Cooled Ion Engine > --- PROPULSION ------- Light Treads Improved Treads > --- UTILITY ---------- High-capacity Storage Unit Advanced Targeting Computer Utility Shielding System Shield > --- WEAPON ----------- Heavy EM Shotgun Precision Beam Rifle > --- INVENTORY -------- Cooled Ion Engine Heat Sink Improved Heat Sink Lightpack 2.0 High-capacity Battery Authchip [Processor] Long-range Tractor Beam Beam Rifle Heavy Assault Rifle Mini Grenade Launcher [Rating: 27] Favorites ----------- Power Cooled Ion Engine Engine Cooled Ion Engine Propulsion Light Treads Treads Light Treads Utility High-capacity Storage Unit Device Heat Sink Storage High-capacity Storage Unit Processor Advanced Targeting Computer Hackware System Shield Protection Medium Armor Plating Weapon Medium Laser Energy Gun Medium Laser Launcher Grenade Launcher Build | -11 -10 -10 -10 -9 -8 -8 ------- Run | Jun Mat Min Exi Min Mat Gar Slots Evolved 4 | . . . . . 4 . Power . | . . . . . . . Propulsion 2 | . . . . . 2 . Utility 2 | . . . . . 2 . Weapon . | . . . . . . . Parts Attached 34 | 6 6 . 1 . 19 2 Power 3 | 1 1 . . . 1 . Engine 3 | 1 1 . . . 1 . Core . | . . . . . . . Reactor . | . . . . . . . Propulsion 5 | 2 . . . . 3 . Treads 5 | 2 . . . . 3 . Leg . | . . . . . . . Wheel . | . . . . . . . Hover . | . . . . . . . Flight . | . . . . . . . Utility 9 | 1 1 . 1 . 5 1 Device 2 | . . . . . 2 . Storage 3 | 1 1 . 1 . . . Processor 1 | . . . . . 1 . Hackware 1 | . . . . . . 1 Protection 2 | . . . . . 2 . Artifact . | . . . . . . . Weapon 17 | 2 4 . . . 10 1 Energy Gun 11 | 2 2 . . . 6 1 Energy Cannon . | . . . . . . . Ballistic Gun . | . . . . . . . Ballistic Cannon . | . . . . . . . Launcher 6 | . 2 . . . 4 . Special Weapon . | . . . . . . . Impact Weapon . | . . . . . . . Slashing Weapon . | . . . . . . . Piercing Weapon . | . . . . . . . Special Melee Weapon . | . . . . . . . Unidentified Prototypes 3 | . 1 . . . 2 . Parts Lost 8 | . . . . . 7 1 Power . | . . . . . . . Propulsion 4 | . . . . . 3 1 Utility 2 | . . . . . 2 . Weapon 2 | . . . . . 2 . Highest Loss Streak 3 | . . . . . 3 1 To Critical Strikes . | . . . . . . . Average Slot Usage (%) 86 | . 85 85 85 85 88 81 Engine 11 | . 14 14 14 14 9 9 Treads 27 | . 28 28 28 28 29 18 Device 5 | . . . . . 13 6 Storage 11 | . 14 14 14 14 9 9 Processor 1 | . . . . . 1 9 Protection 3 | . . . . . 8 9 Energy Gun 21 | . 18 28 28 28 17 18 Launcher 2 | . 9 . . . . . Naked Turns . | . . . . . . . Heaviest Build 64 | 14 33 32 52 52 64 56 Greatest Support 83 | 40 40 40 40 40 83 43 Greatest Overweight (x) 1 | . . . 1 1 1 1 Average Overweight (x) . | . . . . 1 . 1 Largest Inventory Capacity 20 | 8 15 15 20 20 20 20 Average Capacity 17 | 6 11 15 18 20 20 20 Most Carried 13 | . 5 5 9 11 13 12 Average Carried 7 | . 2 5 6 9 10 12 Final Capacity 20 | 8 15 15 20 20 20 20 Final Carried 12 | . 5 5 9 11 12 12 Class Distribution -------------------- 82% | Mutant 17% | Scavenger-Mutant Dominant Class ---------------- Mutant | -10/Materials Mutant | -10/Mines Mutant | -10/Exiles Mutant | -9/Mines Scavenger-Mutant | -8/Materials Mutant | -8/Garrison Resources | -11 -10 -10 -10 -9 -8 -8 ----------- Run | Jun Mat Min Exi Min Mat Gar Matter Collected 646 | 200 200 . . 18 228 . Remotely . | . . . . . . . Salvage Created 1216 | . 313 . . . 903 . Parts 58 | . 15 . . . 43 . Haulers Intercepted 2 | . 2 . . . . . Recyclers Shooed 1 | . . . . . 1 . Parts Field Recycled . | . . . . . . . Retrieved Matter . | . . . . . . . Parts Self-Destructed . | . . . . . . . Prevented . | . . . . . . . Kills | -11 -10 -10 -10 -9 -8 -8 ------- Run | Jun Mat Min Exi Min Mat Gar Combat Hostiles Destroyed 28 | . 9 . . . 19 . Guns 8 | . . . . . 8 . AOE 18 | . 9 . . . 9 . Classes Destroyed 9 | . 3 . . . 6 . Worker 1 | . . . . . 1 . Builder 3 | . . . . . 3 . Tunneler 1 | . . . . . 1 . Hauler 2 | . 2 . . . . . Recycler 1 | . . . . . 1 . Swarmer 4 | . 3 . . . 1 . Grunt 20 | . 6 . . . 14 . Duelist 1 | . . . . . 1 . Sentry 3 | . . . . . 3 . Best Kill Streak 16 | . 5 . . . 16 . Combat Bots Only 12 | . 5 . . . 12 . Max Kills in Single Turn 2 | . 2 . . . 2 . Gunslinging . | . . . . . . . Exploded 2 | . 2 . . . 2 . Melee . | . . . . . . . Uniques/NPCs Destroyed . | . . . . . . . Combat | -11 -10 -10 -10 -9 -8 -8 -------- Run | Jun Mat Min Exi Min Mat Gar Damage Taken 1476 | . 56 . . 327 1066 27 Core 166 | . . . . 67 99 . Absorbed by Shields . | . . . . . . . Redirected to Shielding 9 | . . . . . 9 . Core Remaining (%) 86 | 100 . . . 73 . . Volleys Fired 72 | . 16 . . . 51 5 Largest 2 | . 2 . . . 2 2 Hottest 117 | . 100 . . . 117 117 Shots Fired 116 | . 23 . . . 83 10 Gun 92 | . 14 . . . 68 10 Cannon . | . . . . . . . Launcher 24 | . 9 . . . 15 . Special . | . . . . . . . Kinetic . | . . . . . . . Thermal 73 | . 14 . . . 53 6 Explosive 24 | . 9 . . . 15 . Electromagnetic 19 | . . . . . 15 4 Robot Hit Streak 18 | . 9 . . . 18 . Robot Miss Streak 3 | . 1 . . . 3 . Penetration Max . | . . . . . . . Secondary Targets 3 | . . . . . 3 . Max Gunslinging Chain 1 | . . . . . 1 . Shots Hit Robots 84 | . 16 . . . 68 . Core Hits 73 | . 15 . . . 58 . Critical Kills . | . . . . . . . Critical Parts Destroyed . | . . . . . . . Critical Strikes 6 | . 2 . . . 4 . Burn 6 | . 2 . . . 4 . Melee Attacks . | . . . . . . . Impact . | . . . . . . . Slashing . | . . . . . . . Piercing . | . . . . . . . Sneak Attacks . | . . . . . . . Combat Hostiles . | . . . . . . . Follow-up Attacks . | . . . . . . . Damage Inflicted 3001 | . 647 . . . 2354 . Guns 1012 | . 137 . . . 875 . Cannons . | . . . . . . . Explosions 1986 | . 507 . . . 1479 . Melee . | . . . . . . . Ramming 3 | . 3 . . . . . Kinetic . | . . . . . . . Thermal 774 | . 137 . . . 637 . Explosive 1941 | . 507 . . . 1434 . Electromagnetic 283 | . . . . . 283 . Impact . | . . . . . . . Slashing . | . . . . . . . Piercing . | . . . . . . . Highest Corruption . | . . . . . . . Average Corruption . | . . . . . . . Corruption Purged . | . . . . . . . Corruption Blocked . | . . . . . . . Overload Shots . | . . . . . . . Overflow Damage 31 | . 16 . . . 15 . Projectiles . | . . . . . . . Explosions 31 | . 16 . . . 15 . Melee . | . . . . . . . Knockbacks . | . . . . . . . Impact . | . . . . . . . Kinetic . | . . . . . . . Secondary . | . . . . . . . Self-Inflicted Damage 63 | . . . . . 63 . Shots 3 | . . . . . 3 . Rammed 1 | . 1 . . . . . Targets Rammed 1 | . 1 . . . . . Kicked . | . . . . . . . Crushed . | . . . . . . . Highest Temperature 132 | . 132 . . . 81 3 Average Temperature 37 | . 57 . . . 24 2 Received Heat Transfer 495 | . 18 . . . 468 9 Siege Activations . | . . . . . . . Robots Corrupted . | . . . . . . . Combat Hostiles . | . . . . . . . Parts Fried . | . . . . . . . Impact Corruptions . | . . . . . . . Robots Melted 3 | . 1 . . . 2 . Combat Hostiles 2 | . . . . . 2 . Parts Melted 8 | . 5 . . . 3 . Heat Transferred 2418 | . 555 . . . 1863 . Parts Sabotaged . | . . . . . . . Parts Stolen . | . . . . . . . Parts Stripped . | . . . . . . . Power Chain Reactions 2 | . . . . . 2 . Missiles Intercepted . | . . . . . . . Alert | -11 -10 -10 -10 -9 -8 -8 ------- Run | Jun Mat Min Exi Min Mat Gar Peak Influence 435 | . 179 19 . . 435 331 Initial 276 | . . 19 . . . 276 Average 86 | . 81 19 . . 82 291 Maximum Alert Level 2 | . . . . . 2 1 Low Security (%) 86 | 100 100 100 . 100 86 . Level 1 11 | . . . . . 8 100 Level 2 2 | . . . . . 5 . Level 3 . | . . . . . . . Level 4 . | . . . . . . . Level 5 . | . . . . . . . High Security . | . . . . . . . Max Security . | . . . . . . . Squads Dispatched 4 | . 1 . . . 3 . Investigation 1 | . 1 . . . . . Extermination . | . . . . . . . Reinforcement 1 | . . . . . 1 . Assault . | . . . . . . . Garrison 2 | . . . . . 2 . Intercept . | . . . . . . . Searches Triggered . | . . . . . . . Construction Impeded 1 | . . . . . 1 . Haulers Reinforced . | . . . . . . . Active Scanning Responses . | . . . . . . . Cargo Convoy Interrupts . | . . . . . . . Stealth | -11 -10 -10 -10 -9 -8 -8 --------- Run | Jun Mat Min Exi Min Mat Gar Distress Signals 2 | . . . . . 2 . Communications Jammed . | . . . . . . . Distress Signals . | . . . . . . . Times Spotted 45 | . 14 . . 2 27 2 Peak Tracking Total 6 | . 6 . . 2 6 3 Tactical Retreats . | . . . . . . . Traps | -11 -10 -10 -10 -9 -8 -8 ------- Run | Jun Mat Min Exi Min Mat Gar Traps Triggered 1 | . . . . . 1 . Indirectly . | . . . . . . . Trap Hack Attempts . | . . . . . . . Triggered . | . . . . . . . Disarmed . | . . . . . . . Reprogrammed . | . . . . . . . Reused . | . . . . . . . Traps Extracted . | . . . . . . . Installed . | . . . . . . . Triggered . | . . . . . . . Machines | -11 -10 -10 -10 -9 -8 -8 ---------- Run | Jun Mat Min Exi Min Mat Gar Machines Disabled 2 | . 1 . . . 1 . Max in Single Turn 1 | . 1 . . . 1 . Machines Repaired . | . . . . . . . Machines Sabotaged . | . . . . . . . Overloaded Fab Kills . | . . . . . . . Hacking | -11 -10 -10 -10 -9 -8 -8 --------- Run | Jun Mat Min Exi Min Mat Gar Machines Accessed 14 | . 5 . 1 . 7 1 Terminals 11 | . 4 . . . 6 1 Fabricators . | . . . . . . . Repair Stations 1 | . 1 . . . . . Recycling Units . | . . . . . . . Scanalyzers . | . . . . . . . Garrison Access 1 | . . . . . 1 . Total Hacks 31 | . 11 . 1 . 17 2 Successful 13 | . 5 . 1 . 7 . Failed 18 | . 6 . . . 10 2 Catastrophic 6 | . 2 . . . 3 1 Database Lockouts . | . . . . . . . Manual 27 | . 11 . 1 . 15 . Terminals 28 | . 10 . . . 16 2 Fabricators . | . . . . . . . Repair Stations 1 | . 1 . . . . . Recycling Units . | . . . . . . . Scanalyzers . | . . . . . . . Garrison Access 1 | . . . . . 1 . Terminal Hacks 8 | . 4 . 1 . 3 . Part Schematic 2 | . 2 . . . . . Robot Analysis 2 | . 2 . . . . . Branch Access Points 1 | . . . . . 1 . Garrison Index 1 | . . . . . 1 . Zone Layout 1 | . . . . . 1 . EX-Prototype ID Bank 1 | . . . 1 . . . Fabricator Hacks . | . . . . . . . Repair Station Hacks . | . . . . . . . Recycling Unit Hacks . | . . . . . . . Scanalyzer . | . . . . . . . Garrison Access Hacks 1 | . . . . . 1 . Unlock Access 1 | . . . . . 1 . Unauthorized Hacks 4 | . 1 . . . 3 . Terminals 3 | . . . . . 3 . Botnet 2 | . . . . . 2 . Operators 1 | . . . . . 1 . Fabricators . | . . . . . . . Repair Stations 1 | . 1 . . . . . Mechanics 1 | . 1 . . . . . Recycling Units . | . . . . . . . Scanalyzers . | . . . . . . . Garrison Access . | . . . . . . . Data Cores Recovered . | . . . . . . . Used . | . . . . . . . Hacking Detections 12 | . 5 . . . 6 1 Full Trace Events 2 | . 1 . . . . 1 Feedback Events . | . . . . . . . Feedback Blocked . | . . . . . . . Robot Schematics Acquired . | . . . . . . . Robots Built . | . . . . . . . Authchips . | . . . . . . . Time . | . . . . . . . Total Robot Build Rating . | . . . . . . . Part Schematics Acquired 1 | . 1 . . . . . Parts Built . | . . . . . . . Authchips . | . . . . . . . Time . | . . . . . . . Total Part Build Rating . | . . . . . . . Parts Repaired . | . . . . . . . Time . | . . . . . . . Parts Recycled . | . . . . . . . Recycled Matter . | . . . . . . . Retrieved Matter . | . . . . . . . Retrieved Components . | . . . . . . . Parts Scanalyzed . | . . . . . . . Part Schematics Acquired . | . . . . . . . Parts Damaged . | . . . . . . . Bothacking | -11 -10 -10 -10 -9 -8 -8 ------------ Run | Jun Mat Min Exi Min Mat Gar Used RIF Installer . | . . . . . . . Robots Hacked . | . . . . . . . Non-combat . | . . . . . . . Combat . | . . . . . . . Robot Hacks Applied . | . . . . . . . Relay Couplers Released . | . . . . . . . Fabnet Peak Effective % . | . . . . . . . Robots Rewired . | . . . . . . . Allies Hacked . | . . . . . . . Hacks Repelled . | . . . . . . . Allies | -11 -10 -10 -10 -9 -8 -8 -------- Run | Jun Mat Min Exi Min Mat Gar Total Allies . | . . . . . . . Largest Group . | . . . . . . . Highest-Rated Group . | . . . . . . . Highest-Rated Ally . | . . . . . . . Total Orders . | . . . . . . . Ally Attacks . | . . . . . . . Total Damage . | . . . . . . . Kills . | . . . . . . . Allies Corrupted . | . . . . . . . Allies Melted . | . . . . . . . Intel | -11 -10 -10 -10 -9 -8 -8 ------- Run | Jun Mat Min Exi Min Mat Gar Robot Analysis Total 2 | . 2 . . . . . Derelict Logs Recovered . | . . . . . . . Drone Launches . | . . . . . . . Drone Recoveries . | . . . . . . . Exploration | -11 -10 -10 -10 -9 -8 -8 ------------- Run | Jun Mat Min Exi Min Mat Gar Turns Passed 3255 | 91 856 37 710 250 1115 196 Spaces Moved 1438 | 54 426 24 337 104 419 74 Core 3 | 3 . . . . . . Treads 1435 | 51 426 24 337 104 419 74 Legs . | . . . . . . . Wheels . | . . . . . . . Hover . | . . . . . . . Flight . | . . . . . . . Fastest Speed 50 | 50 160 160 160 240 160 240 Average Speed 189 | 153 160 160 210 240 189 240 Slowest Speed 240 | 160 160 160 240 240 240 240 Overloaded Moves . | . . . . . . . Propulsion Burnouts . | . . . . . . . Robots Hopped . | . . . . . . . Cave-ins Triggered . | . . . . . . . Exploration Rate (%) 33 | 5 60 12 70 36 38 15 Regions Visited 6 Branch Regions 3 Pre-discovered Areas . | . . . . . . . Known Exits Taken 1 | . . . . . 1 . Unknown Exits Taken 5 | 1 1 1 1 1 . . Scrap Searched 1 | . . . . 1 . . Spaces Dug . | . . . . . . . Terrain Destroyed 104 | . 59 . . . 45 . Melee . | . . . . . . . Projectile . | . . . . . . . AOE 104 | . 59 . . . 45 . Terrain Rammed . | . . . . . . . Walls Destroyed . | . . . . . . . Machines Disabled . | . . . . . . . Actions | -11 -10 -10 -10 -9 -8 -8 --------- Run | Jun Mat Min Exi Min Mat Gar Total 1835 | 59 575 23 340 105 652 81 Wait 275 | . 120 . . . 155 . Move 1433 | 53 425 23 336 103 419 74 Hop . | . . . . . . . Pick Up 16 | . 5 . 2 2 7 . Fast Attach 15 | 6 2 . 1 . 6 . Attach 6 | . . . . . 6 . Detach . | . . . . . . . Swap 13 | . 4 . . . 7 2 Drop 4 | . 2 . 1 . 1 . Fire 72 | . 16 . . . 51 5 Melee . | . . . . . . . Ram . | . . . . . . . Kick . | . . . . . . . Crush 1 | . 1 . . . . . Escape Stasis . | . . . . . . . Rewire . | . . . . . . . Trap . | . . . . . . . Miscellaneous . | . . . . . . . Route ------- -11/Junkyard -10/Materials (discovered 2 exits: [*Mat] / [*Min]) -10/Mines -10/Exiles -9/Mines -8/Materials (discovered 2 exits: [Fac] / Gar) -8/Garrison History --------- Turn | Location | Event 11 | -11/Junkyard | Discovered new exit (range 15) 92 | -11/Junkyard | Entered Materials 303 | -10/Materials | Build established: Mutant 541 | -10/Materials | Discovered new exit (range 7) 903 | -10/Materials | Discovered new exit (range 16) 948 | -10/Materials | Entered Mines 977 | -10/Mines | Deemed a non-threat by the Exiles lab entrance 979 | -10/Mines | Discovered new exit (range 5) 985 | -10/Mines | Entered Exiles 1024 | -10/Exiles | Met 8R-AWN 1053 | -10/Exiles | Met EX-HEX 1135 | -10/Exiles | Met EX-DEC 1334 | -10/Exiles | Met EX-BIN 1368 | -10/Exiles | Aligned with FarCom system 1370 | -10/Exiles | Given EX-Vault access code 1430 | -10/Exiles | Opened EX-Vault 1473 | -10/Exiles | Found Lightpack 2.0 1520 | -10/Exiles | Warned to stay clear of 0b10 Research branches 1676 | -10/Exiles | Discovered new exit (range 10) 1695 | -10/Exiles | Left Exiles lab with Lightpack 2.0 1695 | -10/Exiles | Entered Mines 1913 | -9/Mines | Discovered new exit (range 14) 1914 | -9/Mines | Assembled infested the area 1945 | -9/Mines | Entered Materials 1945 | -8/Materials | Evolved 4 slots: Propulsion x2, Utility x2 2298 | -8/Materials | Discovered new exit (range 7) 2573 | -8/Materials | Build established: Scavenger-Mutant 2952 | -8/Materials | Garrison activated, responded to threat 2978 | -8/Materials | Lost 3 parts (1n1u1w) 3024 | -8/Materials | Destroyed 12 combat bots 3060 | -8/Materials | Identified exit to Garrison 3060 | -8/Materials | Entered Garrison 3147 | -8/Garrison | Build established: Mutant 3256 | -8/Garrison | Self-destructed Last Messages --------------- 03029_ Acquired 22 matter. 03032_ Acquired 45 matter. 03032_ R-06 Scavenger collects Flight Unit. 03036_ R-06 Scavenger collects Wheel. 03037_ Acquired 13 matter. 03039_ Acquired 8 matter. 03041_ R-06 Scavenger collects Flight Unit. 03052_ G-47 Trooper emerges from the garrison. 03053_ Lgt. Treads destroyed. 03060_ Connecting with Garrison Access... >>Unlock Access door unlocked. 03060_ EXIT=UNLOCKED: GARRISON LOCATION=GARRISON GOAL=ESCAPE 03060_ Receiving FarCom transmissions... 03199_ Connecting with Garrison Terminal... 03201_ ALERT: Suspicious activity at Terminal G004. Transmitting hostile system tracking data. 03256_ Lgt. Treads destroyed. Map ----- +----------------------------------------------------+ | | | | | | | | | | | | | | | | | ?????????????????????????????????????????????????? | | ?????????????????????????????????????????????????? | | ?????????????????????????????????????????????????? | | ?????????????????????????????????????????????????? | | ?????????????????????????????????????????????????? | | ?????????????????????????????????????????????????? | | ?????????????????????????????????????????????????? | | ?????????????????????????????????????????????????? | | ????????????????????????????????????????????? ???? | | ??????????p?????????????????????????????????? ???? | | ???????????????????????####?????????????????? ##?? | | ???????????????????????# ?????????????????? ?? | | ???????????????????????# ?????????????????? ?? | | ???????????????????????# #?????????????????? #?? | | ???????????????????????# #?????????????????? #?? | | ??????????p????????????# #?????????????????# #?? | | ???????????????????????# #?????????????????# #?? | | ???????????????????????# @#?????????????????# #?? | | ???????????????????????# #?????????????????# #?? | | ???????????????????????# #?????????????????# #?? | | ???????????????????????# #???????????????### #?? | | ???????????????????????# #???????????????# #?? | | ???????????????????????# #???????????????# #?? | | ???????????????????????# #???????????????# #?? | | ???????????????????????# #???????????????### #?? | | ???????????????????????# #?????????????????# #?? | | ???????????????????????# #?????????????????# #?? | | ???????????????????????# #?????????????????# #?? | | ???????????????????????# #?????????????????# #?? | | ???????????????????????# #?????????????????# #? | | ???????????????????????# #?????Y???????????# ## | | ???????????????????????# #?????????????????# | | ???????????????????????#;Y################### | | ???????????????????????# Y ##" | | ???????????????????????# #?" | | ???????????????????????# ######################?? | | ???????????????????????# #??????????????????????? | | ??????????????????????## #??????????????????????? | | ??????????????????????#T #??????????????????????? | | ??????????????????????## #??????????????????????? | | ???????????????????????# #??????????????????????? | | ???????????????????????# #??????????????????????? | +----------------------------------------------------+ Best States ------------- Heat Dissipation 51 Energy Generation 14 Energy Capacity 280 Matter Stores 300 Matter Capacity 300 Sight Range 16 Terrain Scan Density 10 Armor Coverage 225 Utility Shielding 33 Evasion (%) 40 Targeting Accuracy 8 Recoil Reduction 4 Defensive Hacking 10 Authchip Count 1 Item Schematics ----------------- Huge Storage Unit | -10/Materials | Hacked Robot Schematics ------------------ None Fabricated ------------ Nothing Alien Tech Used ----------------- None Achievements -------------- None Challenges ------------ None Game ------ Seed NullTrackerUnit Manual? 0 Play Time 00:13:56 Cumulative 407.0 hours Start 2023.03.06 @ 18:44:57 End 2023.03.06 @ 18:58:26 Sessions 1 Manual Loads 0 Difficulty Rogue Special Mode None Game No. 440 Rogue 431 Adventurer 8 Explorer 1 Win Type - Total 6 Types 3/1/2/0/0/0/0/0/0 Lore% 78 Gallery% 89 Achievement% 71 Wizard Run 0 Options --------- ASCII 0 Keyboard 0 Movement Numpad Keybinds 1 Fullscreen 2 Font 18/Terminus Map View 76x50 Tactical HUD 1 Map Filters NONE Filters NONE Steam 1 RUN: 0b26b840-f568-4320-ab58-132bf239a11a